Workbook

Sheet TD LISTA OPERACI (hidden)
A2: Programa | B2: ='Datos Operaciones seleccionadas'!B8 -> FSE+ C.A. La Rioja
A3: LISTA DE OPERACIONES SELECCIONADAS
A4: Según requerimiento del artículo 49, apartado 3 del Reglamento (UE) 2021/1060
A5: Actualizado el | B5: DD/MM/AAAA
A7: Código operación | B7: Beneficiario | C7: Contratista | D7: Finalidad operación | E7: Logros previstos o reales | F7: Fecha Inicio | G7: Fecha Finalización | H7: Fondo | I7: Objetivo específico | J7: Categoría de región | K7: Porcentaje de cofinanciación | L7: D. Ubicación | M7: País | N7: Campo de intervención | O7: Coste total
A8: Título Programa | B8: (Todas)
A10: Código operación | B10: Beneficiario | C10: Contratista | D10: Finalidad operación | E10: Logros previstos o reales | F10: Fecha Inicio | G10: Fecha Finalización | H10: Fondo | I10: Objetivo específico | J10: Categoría de región | K10: Porcentaje de cofinanciación | L10: D. Ubicación | M10: País | N10: Campo de intervención | O10: Suma de Coste subvencionable de la operación aprobada
A11: 2023/06/SPD-LA SIERRA-ASPRODEMA NÁJERA | B11: Dirección General de Dependecia Discapacidad y mayores | C11: La Sierra Asprodema | D11: Promover itinerarios de inserción, fomentar y apoyar la inserción laboral a través del empleo de personas con discapacidad. | E11: 242 | F11: 44866 | G11: 45230 | H11: ESF | I11: ESO4.8 | J11: T | K11: 0.6 | L11: ES23 | M11: ES | N11: 153 | O11: 962955
A12: 2023/03/SPD-VAREIA-ASPRODEMA | B12: Dirección General de Dependecia Discapacidad y mayores | C12: VAREIA ASPRODEMA | D12: Promover itinerarios de inserción, fomentar y apoyar la inserción laboral a través del empleo de personas con discapacidad. | E12: 242 | F12: 44713 | G12: 45077 | H12: ESF | I12: ESO4.8 | J12: T | K12: 0.6 | L12: ES23 | M12: ES | N12: 153 | O12: 873571
A13: 2023/04/SPD-ÁNCORA-CALAHORRA | B13: Dirección General de Dependecia Discapacidad y mayores | C13: ASOCIACIÓN IGUAL A TI. ANCORA | D13: Promover itinerarios de inserción, fomentar y apoyar la inserción laboral a través del empleo de personas con discapacidad. | E13: 242 | F13: 44896 | G13: 45260 | H13: ESF | I13: ESO4.8 | J13: T | K13: 0.6 | L13: ES23 | M13: ES | N13: 153 | O13: 1504070
A14: 2023/01/SPD-DOMINGO OCHOA | B14: Dirección General de Dependecia Discapacidad y mayores | C14: ASOCIACIÓN IGUAL A TI. DOMINGO OCHOA | D14: Promover itinerarios de inserción, fomentar y apoyar la inserción laboral a través del empleo de personas con discapacidad. | E14: 242 | F14: 44805 | G14: 45169 | H14: ESF | I14: ESO4.8 | J14: T | K14: 0.6 | L14: ES23 | M14: ES | N14: 153 | O14: 1652491
A15: 2023/05/SPD-ASPACE | B15: Dirección General de Dependecia Discapacidad y mayores | C15: ASPACE RIOJA | D15: Promover itinerarios de inserción, fomentar y apoyar la inserción laboral a través del empleo de personas con discapacidad. | E15: 242 | F15: 44866 | G15: 45230 | H15: ESF | I15: ESO4.8 | J15: T | K15: 0.6 | L15: ES23 | M15: ES | N15: 153 | O15: 1443775
A16: 2024/01/SPAS | B16: Servicio de Planificación y Acción Social. Consejería de Salud y Políticas Sociales. | C16: CARITAS-CHAVICAR | D16: un programa cuyo objetivo es la formación y capacitación de personas en situación de vulnerabilidad social que habilita y dota de recursos personales y sociales, habilidades y capacidades, que facilitan la promoción individual de estas personas, y previenen o frenan la exclusión social | E16: 96 | F16: 44562 | G16: 44592 | H16: ESF | I16: ESO4.8 | J16: T | K16: 0.6 | L16: ES23 | M16: ES | N16: 153 | O16: 180512
A17: 2024/02/SPAS | B17: Servicio de Planificación y Acción Social. Consejería de Salud y Políticas Sociales. | C17: CARITAS-CHAVICAR | D17: un programa cuyo objetivo es la formación y capacitación de personas en situación de vulnerabilidad social que habilita y dota de recursos personales y sociales, habilidades y capacidades, que facilitan la promoción individual de estas personas, y previenen o frenan la exclusión social | E17: 96 | F17: 44927 | G17: 45291 | H17: ESF | I17: ESO4.8 | J17: T | K17: 0.6 | L17: ES23 | M17: ES | N17: 153 | O17: 180512
A18: 2024/02/SPD-ARFES | B18: Dirección General de Dependecia Discapacidad y mayores | C18: ARFES | D18: Promover itinerarios de inserción, fomentar y apoyar la inserción laboral a través del empleo de personas con discapacidad. | E18: 242 | F18: 45017 | G18: 45382 | H18: ESF | I18: ESO4.8 | J18: T | K18: 0.6 | L18: ES23 | M18: ES | N18: 153 | O18: 829426
A19: 2024/01/SER_CONT CCLL/ISL | B19: Dirección General de Empleo | C19: (en blanco) | D19: contrtación de personas jóvenes desempleadas inscritas en el SNGJ en colaboración con corporaciones locales y Entidades sin áanimo de lucro para eld esarrollo de proyectos de activación para el empleo en áreas de interés general y social. | E19: 618 | F19: 45078 | G19: 45565 | H19: ESF | I19: ESO4.1 | J19: T | K19: 0.6 | L19: ES23 | M19: ES | N19: 136 | O19: 1531966
A20: 2024/03/SPD-VAREIA-CENTRO DIA | B20: Dirección General de Dependecia Discapacidad y mayores | C20: VAREIA ASPRODEMA | D20: Atención integral a personas en situación de dependencia durante el periodo diurno con el objetivo de mejorar o mantener el mejor nivel de autonomía personal y de dependencia y de apoyar a las familias y cuidadores. | E20: 139 | F20: 45078 | G20: 45443 | H20: ESF | I20: ESO4.11 | J20: T | K20: 0.6 | L20: ES23 | M20: ES | N20: 158 | O20: 440496
A21: 2024/02/SPD-PUERTA ABIERTA-CENTRO DE DIA | B21: Dirección General de Dependecia Discapacidad y mayores | C21: ARFES- PUERTA ABIERTA | D21: Atención integral a personas en situación de dependencia durante el periodo diurno con el objetivo de mejorar o mantener el mejor nivel de autonomía personal y de dependencia y de apoyar a las familias y cuidadores. | E21: 139 | F21: 45383 | G21: 45747 | H21: ESF | I21: ESO4.11 | J21: T | K21: 0.6 | L21: ES23 | M21: ES | N21: 158 | O21: 393972
A22: 2024/04/CENTRO DIA- ANCORA-CALAHORRA | B22: Dirección General de Dependecia Discapacidad y mayores | C22: ASOCIACION IGUAL A TI. | D22: Atención integral a personas en situación de dependencia durante el periodo diurno con el objetivo de mejorar o mantener el mejor nivel de autonomía personal y de dependencia y de apoyar a las familias y cuidadores. | E22: 139 | F22: 45261 | G22: 45595 | H22: ESF | I22: ESO4.11 | J22: T | K22: 0.6 | L22: ES23 | M22: ES | N22: 158 | O22: 721063
A23: 2024/05/CENTRO DE DIA-ASPACE | B23: Dirección General de Dependecia Discapacidad y mayores | C23: ASPACE RIOJA | D23: Atención integral a personas en situación de dependencia durante el periodo diurno con el objetivo de mejorar o mantener el mejor nivel de autonomía personal y de dependencia y de apoyar a las familias y cuidadores. | E23: 139 | F23: 45413 | G23: 45596 | H23: ESF | I23: ESO4.11 | J23: T | K23: 0.6 | L23: ES23 | M23: ES | N23: 158 | O23: 440835
A24: 2024/05/CENTRO DIA DOMINGO OCHOA | B24: Dirección General de Dependecia Discapacidad y mayores | C24: ASOCIACION IGUAL A TI. | D24: Atención integral a personas en situación de dependencia durante el periodo diurno con el objetivo de mejorar o mantener el mejor nivel de autonomía personal y de dependencia y de apoyar a las familias y cuidadores. | E24: 139 | F24: 45352 | G24: 45716 | H24: ESF | I24: ESO4.11 | J24: T | K24: 0.6 | L24: ES23 | M24: ES | N24: 158 | O24: 975697
A25: 2024/03/SPAS | B25: Servicio de Planificación y Acción Social. Consejería de Salud y Políticas Sociales. | C25: CARITAS-CHAVICAR | D25: un programa cuyo objetivo es la formación y capacitación de personas en situación de vulnerabilidad social que habilita y dota de recursos personales y sociales, habilidades y capacidades, que facilitan la promoción individual de estas personas, y previenen o frenan la exclusión social | E25: 96 | F25: 45292 | G25: 45657 | H25: ESF | I25: ESO4.8 | J25: T | K25: 0.6 | L25: ES23 | M25: ES | N25: 153 | O25: 180512
A26: 2024/06/DPD-LA SIERRA-CENTRO DE DIA | B26: Dirección General de Dependecia Discapacidad y mayores | C26: ASPRODEMA | D26: Atención integral a personas en situación de dependencia durante el periodo diurno con el objetivo de mejorar o mantener el mejor nivel de autonomía personal y de dependencia y de apoyar a las familias y cuidadores. | E26: 139 | F26: 45231 | G26: 45596 | H26: ESF | I26: ESO4.11 | J26: T | K26: 0.6 | L26: ES23 | M26: ES | N26: 158 | O26: 378217
A27: 2024/01/SPAC-SIPF | B27: Servicio de Planificación y Acción Social. Consejería de Salud y Políticas Sociales. | C27: ARQUISOCIAL S.L.U | D27: Atencion preventiva con familais | E27: 828 | F27: 45108 | G27: 45839 | H27: ESF | I27: ESO4.11 | J27: T | K27: 0.6 | L27: ES23 | M27: ES | N27: 159 | O27: 1214000
A28: 2024/02/SRE_ORIENTACION | B28: Dirección General de Empleo | C28: (en blanco) | D28: Orientación profesional personas desfavorecidas 2024 | E28: 120 | F28: 45292 | G28: 45657 | H28: ESF | I28: ESO4.1 | J28: T | K28: 0.6 | L28: ES23 | M28: ES | N28: 134 | O28: 63100
A29: 2024/03/SRE_ORIENTACION | B29: Dirección General de Empleo | C29: (en blanco) | D29: Orientación profesional personas SNGJ 2024 | E29: 618 | F29: 45292 | G29: 45322 | H29: ESF | I29: ESO4.1 | J29: T | K29: 0.6 | L29: ES23 | M29: ES | N29: 136 | O29: 63100
A30: 2024/01/ADER_INTERNACIONALIZACIÓN (2023-2024) | B30: ADER | C30: (en blanco) | D30: Becas de formación en prácticas sobre INTERNACIONALIZACIÓN (2023-2024). | E30: 618 | F30: 45170 | G30: 45657 | H30: ESF | I30: ESO4.1 | J30: T | K30: 0.6 | L30: ES23 | M30: ES | N30: 136 | O30: 330000
A31: 2025/01/SRE_ESCUELAS TALLER | B31: Dirección General de Empleo | C31: (en blanco) | D31: realización de proyectos de alternancia entre la formación y el trabajo productivo en actividades de utilidad pública o interés social. | E31: 105 | F31: 45383 | G31: 45748 | H31: ESF | I31: ESO4.1 | J31: T | K31: 0.6 | L31: ES23 | M31: ES | N31: 136 | O31: 290139
A32: 2025/02/SRRE_CONTRATACIÓN JÓVENES SNGJ. Convocaatoria 2024 | B32: Dirección General de Empleo | C32: (en blanco) | D32: contratación de personas jóvenes desempleadas inscritas en el SNGJ en colaboración con corporaciones locales y Entidades sin áanimo de lucro para que obtengan una práctica profesional mediante la realización de tareas y funciones acordes a su perfil y vinculadas al desarrollo de proyectos de interés general y social, facilitándoles además, una experiencia laboral adecuada a su nivel de estudios. | E32: (en blanco) | F32: 45444 | G32: 45930 | H32: ESF | I32: ESO4.1 | J32: T | K32: 0.6 | L32: ES23 | M32: ES | N32: 136 | O32: 1666890
A33: 2025/01/SRE_ORIENTACION | B33: Dirección General de Empleo | C33: (en blanco) | D33: Orientación profesional personas desfavorecidas 2025 | E33: 120 | F33: 45658 | G33: 46022 | H33: ESF | I33: ESO4.1 | J33: T | K33: 0.6 | L33: ES23 | M33: ES | N33: 134 | O33: 63100
A34: 2025/02/SRE_ORIENTACION | B34: Dirección General de Empleo | C34: (en blanco) | D34: Orientación profesional personas SNGJ 2025 | E34: 618 | F34: 45658 | G34: 46022 | H34: ESF | I34: ESO4.1 | J34: T | K34: 0.6 | L34: ES23 | M34: ES | N34: 136 | O34: 63100
A35: 2025/01/SDyPD_ATENCIÓN TEMPRANA | B35: Servicio de Dependencia, Discapacidad y Mayores. Consejería de Salud y Políticas Sociales. | C35: Varios adjudicatarios | D35: Reducir las consecuencias negativas de los trastornos en el desarrrollo del menor. | E35: 828 | F35: 45352 | G35: 47209 | H35: ESF | I35: ESO4.11 | J35: T | K35: 0.6 | L35: ES23 | M35: ES | N35: 159 | O35: 4039875
A36: 2025/03/SRE_CONTRATACIÓN JÓVENES SNGJ. Convocaatoria 2024 | B36: Dirección General de Empleo | C36: (en blanco) | D36: contratación de personas jóvenes desempleadas inscritas en el SNGJ en colaboración con corporaciones locales y Entidades sin áanimo de lucro para que obtengan una práctica profesional mediante la realización de tareas y funciones acordes a su perfil y vinculadas al desarrollo de proyectos de interés general y social, facilitándoles además, una experiencia laboral adecuada a su nivel de estudios. | E36: (en blanco) | F36: 45627 | G36: 45930 | H36: ESF | I36: ESO4.1 | J36: T | K36: 0.6 | L36: ES23 | M36: ES | N36: 136 | O36: 793950
A37: 2025/03/SRE_CONTRATACIÓN JÓVENES SNGJ. Convocatoria 2025 | B37: Dirección General de Empleo | C37: (en blanco) | D37: contratación de personas jóvenes desempleadas inscritas en el SNGJ en colaboración con corporaciones locales y Entidades sin áanimo de lucro para que obtengan una práctica profesional mediante la realización de tareas y funciones acordes a su perfil y vinculadas al desarrollo de proyectos de interés general y social, facilitándoles además, una experiencia laboral adecuada a su nivel de estudios. | E37: (en blanco) | F37: 45809 | G37: 46295 | H37: ESF | I37: ESO4.1 | J37: T | K37: 0.6 | L37: ES23 | M37: ES | N37: 136 | O37: 1711695.66

Sheet Datos Operaciones seleccionadas
A1: Programa: | B1: =B8 -> FSE+ C.A. La Rioja
A4: DATOS OPERACIONES SELECCIONADAS.
A7: CCI Programa | B7: Título Programa | C7: Prioridad | D7: Objetivo específico | E7: Fondo | F7: Categoría de región | G7: Código global de la operación | H7: Descripción de la operación | I7: Operación estratégica (SI/NO) | J7: Aplicación art. 94 o art.95 | K7: Código común métodos de gestión | L7: Método de Gestión | M7: Tipología de operación | N7: Código operación | O7: Nombre operación | P7: Beneficiario | Q7: Contratista | R7: Finalidad operación | S7: Logros previstos o reales | T7: Fecha Inicio | U7: Fecha Finalización | V7: Coste subvencionable de la operación aprobada | W7: Financiación privada nacional | X7: País | Y7: Campo de intervención | Z7: Forma de ayuda | AA7: D. Aplicación Territorial | AB7: D. Actividad Económica | AC7: D. Ubicación | AD7: D. Tema secundario del FSE+ 01 | AE7: D. Tema secundario del FSE+ 02 | AF7: D. Tema secundario del FSE+ 03 | AG7: D. Tema secundario del FSE+ 04 | AH7: D. Tema secundario del FSE+ 05 | AI7: D. Tema secundario del FSE+ 06 | AJ7: D. Tema secundario del FSE+ 07 | AK7: D. Tema secundario del FSE+ 08 | AL7: D. Tema secundario del FSE+ 09 | AM7: D. Tema secundario del FSE+ 10 | AN7: D. Igualdad de Género | AO7: D. Macrorregional y de las cuencas marítimas | AP7: Importe total del gasto subvencionable declarado por los beneficiarios | AQ7: Contribución pública total (nacional+comunitaria) | AR7: Financiación pública nacional | AS7: Contribución de los fondos a las operaciones seleccionadas (EUR) | AT7: Porcentaje de cofinanciación
A8: 2021ES05SFPR018 | B8: FSE+ C.A. La Rioja | C8: 2 | D8: ESO4.8 | E8: ESF | F8: T | H8: Itinerario de inserción en el centro ocupacional "la Sierra ASPRODEMA, DE NAJERA" anualidad 2022-2023 | I8: SI | J8: N/A | L8: GI-CONT | M8: 12 | N8: 2023/06/SPD-LA SIERRA-ASPRODEMA NÁJERA | O8: Programa de Itinerarios de Inserción en Centros Ocupacionales – Contrato CAR/Centro LA SIERRA-ASPRODEMA NÁJERA. | P8: Dirección General de Dependecia Discapacidad y mayores | Q8: La Sierra Asprodema | R8: Promover itinerarios de inserción, fomentar y apoyar la inserción laboral a través del empleo de personas con discapacidad. | S8: 242 | T8: 44866 | U8: 45230 | V8: 962955 | W8: 0 | X8: ES | Y8: 153 | Z8: 01 | AA8: 33 | AB8: 23 | AC8: ES23 | AH8: 05 | AM8: 10 | AN8: 02 | AO8: 11 | AP8: 0 | AQ8: =AR8+AS8 -> 962955 | AR8: =V8-(AS8+W8) -> 385182 | AS8: =V8*AT8 -> 577773 | AT8: =IF(A8="2021ES05SFPR009",85%,IF(A8="2021ES05SFPR004",90%,IF(C8="6",95%,IF(F8="M",40%,IF(F8="T",60%,IF(F8="L",85%,0)))))) -> 0.6
A9: 2021ES05SFPR018 | B9: FSE+ C.A. La Rioja | C9: 2 | D9: ESO4.8 | E9: ESF | F9: T | H9: Itinerario de inserción en el centro ocupacional "VAREIA ASPRODEMA, DE LOGROÑO" anualidad 2022-2023 | I9: SI | J9: N/A | L9: GI-CONT | M9: 12 | N9: 2023/03/SPD-VAREIA-ASPRODEMA | O9: Programa de Itinerarios de Inserción en Centros Ocupacionales – Contrato CAR/Centro VAREIA-ASPRODEMA LOGROÑO. | P9: Dirección General de Dependecia Discapacidad y mayores | Q9: VAREIA ASPRODEMA | R9: Promover itinerarios de inserción, fomentar y apoyar la inserción laboral a través del empleo de personas con discapacidad. | S9: 242 | T9: 44713 | U9: 45077 | V9: 873571 | W9: 0 | X9: ES | Y9: 153 | Z9: 01 | AA9: 33 | AB9: 23 | AC9: ES23 | AH9: 05 | AM9: 10 | AN9: 02 | AO9: 11 | AP9: 0 | AQ9: =AR9+AS9 -> 873571 | AR9: =V9-(AS9+W9) -> 349428.4 | AS9: =V9*AT9 -> 524142.6 | AT9: =IF(A9="2021ES05SFPR009",85%,IF(A9="2021ES05SFPR004",90%,IF(C9="6",95%,IF(F9="M",40%,IF(F9="T",60%,IF(F9="L",85%,0)))))) -> 0.6
A10: 2021ES05SFPR018 | B10: FSE+ C.A. La Rioja | C10: 2 | D10: ESO4.8 | E10: ESF | F10: T | H10: Itinerario de inserción en el centro ocupacional "ASOCIACIÓN IGUAL A TI ANCORA CALAHORRA" anualidad 2022-2023 | I10: SI | J10: N/A | L10: GI-CONT | M10: 12 | N10: 2023/04/SPD-ÁNCORA-CALAHORRA | O10: Programa de Itinerarios de Inserción en Centros Ocupacionales – Contrato CAR/Centro ÁNCORA-CALAHORRA. | P10: Dirección General de Dependecia Discapacidad y mayores | Q10: ASOCIACIÓN IGUAL A TI. ANCORA | R10: Promover itinerarios de inserción, fomentar y apoyar la inserción laboral a través del empleo de personas con discapacidad. | S10: 242 | T10: 44896 | U10: 45260 | V10: 1504070 | W10: 0 | X10: ES | Y10: 153 | Z10: 01 | AA10: 33 | AB10: 23 | AC10: ES23 | AH10: 05 | AM10: 10 | AN10: 02 | AO10: 11 | AP10: 0 | AQ10: 1504070 | AR10: 601628 | AS10: 902442 | AT10: 0.6
A11: 2021ES05SFPR018 | B11: FSE+ C.A. La Rioja | C11: 2 | D11: ESO4.8 | E11: ESF | F11: T | H11: Itinerario de inserción en el centro ocupacional "ASOCIACIÓN IGUAL A TI CENTRO DOMINGO OCHOA " anualidad 2022-2023 | I11: SI | J11: N/A | L11: GI-CONT | M11: 12 | N11: 2023/01/SPD-DOMINGO OCHOA | O11: Programa de Itinerarios de Inserción en Centros Ocupacionales – Contrato CAR/Centro DOMINGO OCHOA-ASOCIACIÓN IGUAL A TI, en Logroño. | P11: Dirección General de Dependecia Discapacidad y mayores | Q11: ASOCIACIÓN IGUAL A TI. DOMINGO OCHOA | R11: Promover itinerarios de inserción, fomentar y apoyar la inserción laboral a través del empleo de personas con discapacidad. | S11: 242 | T11: 44805 | U11: 45169 | V11: 1652491 | W11: 0 | X11: ES | Y11: 153 | Z11: 01 | AA11: 33 | AB11: 23 | AC11: ES23 | AH11: 05 | AM11: 10 | AN11: 02 | AO11: 11 | AP11: 0 | AQ11: 1652491 | AR11: 660996.4 | AS11: 991494.6 | AT11: 0.6
A12: 2021ES05SFPR018 | B12: FSE+ C.A. La Rioja | C12: 2 | D12: ESO4.8 | E12: ESF | F12: T | H12: Itinerario de inserción en el centro ocupacional "ASOCIACIÓN IGUAL A TI ANCORA CALAHORRA" anualidad 2022-2023 | I12: SI | J12: N/A | L12: GI-CONT | M12: 12 | N12: 2023/05/SPD-ASPACE | O12: Programa de Itinerarios de Inserción en Centros Ocupacionales – Contrato CAR/Centro ASPACE-LA RIOJA. | P12: Dirección General de Dependecia Discapacidad y mayores | Q12: ASPACE RIOJA | R12: Promover itinerarios de inserción, fomentar y apoyar la inserción laboral a través del empleo de personas con discapacidad. | S12: 242 | T12: 44866 | U12: 45230 | V12: 1443775 | W12: 0 | X12: ES | Y12: 153 | Z12: 01 | AA12: 33 | AB12: 23 | AC12: ES23 | AH12: 05 | AM12: 10 | AN12: 02 | AO12: 11 | AP12: 0 | AQ12: 1443775 | AR12: 577510 | AS12: 866265 | AT12: 0.6
A13: 2021ES05SFPR018 | B13: FSE+ C.A. La Rioja | C13: 2 | D13: ESO4.8 | E13: ESF | F13: T | H13: Programa Inclusión Social Activa 2022 | I13: NO | J13: N/A | L13: GC-CONC | M13: 12 | N13: 2024/01/SPAS | O13: Programa Inclusión Social Activa 2022 | P13: Servicio de Planificación y Acción Social. Consejería de Salud y Políticas Sociales. | Q13: CARITAS-CHAVICAR | R13: un programa cuyo objetivo es la formación y capacitación de personas en situación de vulnerabilidad social que habilita y dota de recursos personales y sociales, habilidades y capacidades, que facilitan la promoción individual de estas personas, y previenen o frenan la exclusión social | S13: 96 | T13: 44562 | U13: 44592 | V13: 180512 | W13: 0 | X13: ES | Y13: 153 | Z13: 01 | AA13: 33 | AB13: 23 | AC13: ES23 | AH13: 05 | AM13: 10 | AN13: 02 | AO13: 11 | AP13: 0 | AQ13: 180512 | AR13: 72204.8 | AS13: 108307.2 | AT13: 0.6
A14: 2021ES05SFPR018 | B14: FSE+ C.A. La Rioja | C14: 2 | D14: ESO4.8 | E14: ESF | F14: T | H14: Programa Inclusión Social Activa 2023 | I14: NO | J14: N/A | L14: GC-CONC | M14: 12 | N14: 2024/02/SPAS | O14: Programa Inclusión Social Activa 2023 | P14: Servicio de Planificación y Acción Social. Consejería de Salud y Políticas Sociales. | Q14: CARITAS-CHAVICAR | R14: un programa cuyo objetivo es la formación y capacitación de personas en situación de vulnerabilidad social que habilita y dota de recursos personales y sociales, habilidades y capacidades, que facilitan la promoción individual de estas personas, y previenen o frenan la exclusión social | S14: 96 | T14: 44927 | U14: 45291 | V14: 180512 | W14: 0 | X14: ES | Y14: 153 | Z14: 01 | AA14: 33 | AB14: 23 | AC14: ES23 | AH14: 05 | AM14: 10 | AN14: 02 | AO14: 11 | AP14: 0 | AQ14: 180512 | AR14: 72204.8 | AS14: 108307.2 | AT14: 0.6
A15: 2021ES05SFPR018 | B15: FSE+ C.A. La Rioja | C15: 2 | D15: ESO4.8 | E15: ESF | F15: T | H15: Itinerario de inserción en el centro ocupacional "ASOCIACIÓN IGUAL A TI ANCORA CALAHORRA" anualidad 2022-2023 | I15: SI | J15: N/A | L15: GI-CONT | M15: 12 | N15: 2024/02/SPD-ARFES | O15: Programa de Itinerarios de Inserción en Centros Ocupacionales – Contrato ARFES- LOGROÑO | P15: Dirección General de Dependecia Discapacidad y mayores | Q15: ARFES | R15: Promover itinerarios de inserción, fomentar y apoyar la inserción laboral a través del empleo de personas con discapacidad. | S15: 242 | T15: 45017 | U15: 45382 | V15: 829426 | W15: 0 | X15: ES | Y15: 153 | Z15: 01 | AA15: 33 | AB15: 23 | AC15: ES23 | AH15: 05 | AM15: 10 | AN15: 02 | AO15: 11 | AP15: 0 | AQ15: 829426 | AR15: 331770.4 | AS15: 497655.6 | AT15: 0.6
A16: 2021ES05SFPR018 | B16: FSE+ C.A. La Rioja | C16: 5 | D16: ESO4.1 | E16: ESF | F16: T | H16: Colaboración con corporaciones locales e instituciones sin ánimo de lucro para la realización de proyectos de interés general y social. | I16: NO | J16: N/A | L16: CS | M16: 5A | N16: 2024/01/SER_CONT CCLL/ISL | O16: Colaboración con corporaciones locales e instituciones sin ánimo de lucro para la realización de proyectos de interés general y social. | P16: Dirección General de Empleo | R16: contrtación de personas jóvenes desempleadas inscritas en el SNGJ en colaboración con corporaciones locales y Entidades sin áanimo de lucro para eld esarrollo de proyectos de activación para el empleo en áreas de interés general y social. | S16: 618 | T16: 45078 | U16: 45565 | V16: 1531966 | W16: 0 | X16: ES | Y16: 136 | Z16: 01 | AA16: 33 | AB16: 20 | AC16: ES23 | AD16: 01 | AE16: 02 | AG16: 04 | AM16: 10 | AN16: 02 | AO16: 11 | AP16: 0 | AQ16: 1531966 | AR16: 612786.4 | AS16: 919179.6 | AT16: 0.6
A17: 2021ES05SFPR018 | B17: FSE+ C.A. La Rioja | C17: 2 | D17: ESO4.11 | E17: ESF | F17: T | H17: Servivio de atención diurna para personas con discapacidad | I17: NO | J17: N/A | L17: GI-CONT | M17: 12 | N17: 2024/03/SPD-VAREIA-CENTRO DIA | O17: Servivio de atención diurna para personas con discapacidad - Contrato CAR/ Centro ASPRODEMA-VAREIA | P17: Dirección General de Dependecia Discapacidad y mayores | Q17: VAREIA ASPRODEMA | R17: Atención integral a personas en situación de dependencia durante el periodo diurno con el objetivo de mejorar o mantener el mejor nivel de autonomía personal y de dependencia y de apoyar a las familias y cuidadores. | S17: 139 | T17: 45078 | U17: 45443 | V17: 440496 | W17: 0 | X17: ES | Y17: 158 | Z17: 01 | AA17: 33 | AB17: 23 | AC17: ES23 | AH17: 05 | AM17: 10 | AN17: 02 | AO17: 11 | AP17: 0 | AQ17: 440496 | AR17: 176198.4 | AS17: 264297.6 | AT17: 0.6
A18: 2021ES05SFPR018 | B18: FSE+ C.A. La Rioja | C18: 2 | D18: ESO4.11 | E18: ESF | F18: T | H18: Servivio de atención diurna para personas con discapacidad | I18: NO | J18: N/A | L18: GI-CONT | M18: 12 | N18: 2024/02/SPD-PUERTA ABIERTA-CENTRO DE DIA | O18: Servivio de atención diurna para personas con discapacidad - Contrato CAR/ Centro ARFES - PUERTA ABIERTA | P18: Dirección General de Dependecia Discapacidad y mayores | Q18: ARFES- PUERTA ABIERTA | R18: Atención integral a personas en situación de dependencia durante el periodo diurno con el objetivo de mejorar o mantener el mejor nivel de autonomía personal y de dependencia y de apoyar a las familias y cuidadores. | S18: 139 | T18: 45383 | U18: 45747 | V18: 393972 | W18: 0 | X18: ES | Y18: 158 | Z18: 01 | AA18: 33 | AB18: 23 | AC18: ES23 | AH18: 05 | AM18: 10 | AN18: 02 | AO18: 11 | AP18: 0 | AQ18: 393972 | AR18: 157588.8 | AS18: 236383.2 | AT18: 0.6
A19: 2021ES05SFPR018 | B19: FSE+ C.A. La Rioja | C19: 2 | D19: ESO4.11 | E19: ESF | F19: T | H19: Servivio de atención diurna para personas con discapacidad | I19: NO | J19: N/A | L19: GI-CONT | M19: 12 | N19: 2024/04/CENTRO DIA- ANCORA-CALAHORRA | O19: Servivio de atención diurna para personas con discapacidad - Contrato CAR/ ASONCIACION IGUAL A TI Centro ANCORA CALAHORRA | P19: Dirección General de Dependecia Discapacidad y mayores | Q19: ASOCIACION IGUAL A TI. | R19: Atención integral a personas en situación de dependencia durante el periodo diurno con el objetivo de mejorar o mantener el mejor nivel de autonomía personal y de dependencia y de apoyar a las familias y cuidadores. | S19: 139 | T19: 45261 | U19: 45595 | V19: 721063 | W19: 0 | X19: ES | Y19: 158 | Z19: 01 | AA19: 33 | AB19: 23 | AC19: ES23 | AH19: 05 | AM19: 10 | AN19: 02 | AO19: 11 | AP19: 0 | AQ19: 721063 | AR19: 288425.2 | AS19: 432637.8 | AT19: 0.6
A20: 2021ES05SFPR018 | B20: FSE+ C.A. La Rioja | C20: 2 | D20: ESO4.11 | E20: ESF | F20: T | H20: Servivio de atención diurna para personas con discapacidad | I20: NO | J20: N/A | L20: GI-CONT | M20: 12 | N20: 2024/05/CENTRO DE DIA-ASPACE | O20: Servivio de atención diurna para personas con discapacidad - Contrato CAR/ Centro ASPACE | P20: Dirección General de Dependecia Discapacidad y mayores | Q20: ASPACE RIOJA | R20: Atención integral a personas en situación de dependencia durante el periodo diurno con el objetivo de mejorar o mantener el mejor nivel de autonomía personal y de dependencia y de apoyar a las familias y cuidadores. | S20: 139 | T20: 45413 | U20: 45596 | V20: 440835 | W20: 0 | X20: ES | Y20: 158 | Z20: 01 | AA20: 33 | AB20: 23 | AC20: ES23 | AH20: 05 | AM20: 10 | AN20: 02 | AO20: 11 | AP20: 0 | AQ20: 440835 | AR20: 176334 | AS20: 264501 | AT20: 0.6
A21: 2021ES05SFPR018 | B21: FSE+ C.A. La Rioja | C21: 2 | D21: ESO4.11 | E21: ESF | F21: T | H21: Servivio de atención diurna para personas con discapacidad | I21: NO | J21: N/A | L21: GI-CONT | M21: 12 | N21: 2024/05/CENTRO DIA DOMINGO OCHOA | O21: Servivio de atención diurna para personas con discapacidad y dependencia ASOCIACION IGUAL A TI. CENTRO DOMINGO OCHOA | P21: Dirección General de Dependecia Discapacidad y mayores | Q21: ASOCIACION IGUAL A TI. | R21: Atención integral a personas en situación de dependencia durante el periodo diurno con el objetivo de mejorar o mantener el mejor nivel de autonomía personal y de dependencia y de apoyar a las familias y cuidadores. | S21: 139 | T21: 45352 | U21: 45716 | V21: 975697 | W21: 0 | X21: ES | Y21: 158 | Z21: 01 | AA21: 33 | AB21: 23 | AC21: ES23 | AH21: 05 | AM21: 10 | AN21: 02 | AO21: 11 | AP21: 0 | AQ21: 975697 | AR21: 390278.8 | AS21: 585418.2 | AT21: 0.6
A22: 2021ES05SFPR018 | B22: FSE+ C.A. La Rioja | C22: 2 | D22: ESO4.8 | E22: ESF | F22: T | H22: Programa Inclusión Social Activa 2022 | I22: NO | J22: N/A | L22: GC-CONC | M22: 12 | N22: 2024/03/SPAS | O22: Programa Inclusión Social Activa 2024 | P22: Servicio de Planificación y Acción Social. Consejería de Salud y Políticas Sociales. | Q22: CARITAS-CHAVICAR | R22: un programa cuyo objetivo es la formación y capacitación de personas en situación de vulnerabilidad social que habilita y dota de recursos personales y sociales, habilidades y capacidades, que facilitan la promoción individual de estas personas, y previenen o frenan la exclusión social | S22: 96 | T22: 45292 | U22: 45657 | V22: 180512 | W22: 0 | X22: ES | Y22: 153 | Z22: 01 | AA22: 33 | AB22: 23 | AC22: ES23 | AH22: 05 | AM22: 10 | AN22: 02 | AO22: 11 | AP22: 0 | AQ22: 180512 | AR22: 72204.8 | AS22: 108307.2 | AT22: 0.6
A23: 2021ES05SFPR018 | B23: FSE+ C.A. La Rioja | C23: 2 | D23: ESO4.11 | E23: ESF | F23: T | H23: Servivio de atención diurna para personas con discapacidad | I23: NO | J23: N/A | L23: GI-CONT | M23: 12 | N23: 2024/06/DPD-LA SIERRA-CENTRO DE DIA | O23: Servivio de atención diurna para personas con discapacidad y dependencia Contrato CAR/ CENTRO ASPRODEMA-LA SIERRA | P23: Dirección General de Dependecia Discapacidad y mayores | Q23: ASPRODEMA | R23: Atención integral a personas en situación de dependencia durante el periodo diurno con el objetivo de mejorar o mantener el mejor nivel de autonomía personal y de dependencia y de apoyar a las familias y cuidadores. | S23: 139 | T23: 45231 | U23: 45596 | V23: 378217 | W23: 0 | X23: ES | Y23: 158 | Z23: 01 | AA23: 33 | AB23: 23 | AC23: ES23 | AH23: 05 | AM23: 10 | AN23: 02 | AO23: 11 | AP23: 0 | AQ23: 378217 | AR23: 151286.8 | AS23: 226930.2 | AT23: 0.6
A24: 2021ES05SFPR018 | B24: FSE+ C.A. La Rioja | C24: 7 | D24: ESO4.11 | E24: ESF | F24: T | H24: Atencion preventiva con familias | I24: NO | J24: N/A | L24: GC-CONC | M24: 12 | N24: 2024/01/SPAC-SIPF | O24: Servicio de Intervención Preventiva con Familias | P24: Servicio de Planificación y Acción Social. Consejería de Salud y Políticas Sociales. | Q24: ARQUISOCIAL S.L.U | R24: Atencion preventiva con familais | S24: 828 | T24: 45108 | U24: 45839 | V24: 1214000 | W24: 0 | X24: ES | Y24: 159 | Z24: 01 | AA24: 33 | AB24: 23 | AC24: ES23 | AH24: 05 | AM24: 10 | AN24: 02 | AO24: 11 | AP24: 0 | AQ24: 1214000 | AR24: 485600 | AS24: 728400 | AT24: 0.6
A25: 2021ES05SFPR018 | B25: FSE+ C.A. La Rioja | C25: 1 | D25: ESO4.1 | E25: ESF | F25: T | H25: Orientación profesional personas desfavorecidas | I25: NO | J25: N/A | L25: GD-MP | M25: 3 | N25: 2024/02/SRE_ORIENTACION | O25: Orientación profesional personas desfavorecidas 2024 | P25: Dirección General de Empleo | R25: Orientación profesional personas desfavorecidas 2024 | S25: 120 | T25: 45292 | U25: 45657 | V25: 63100 | W25: 0 | X25: ES | Y25: 134 | Z25: 01 | AA25: 33 | AB25: 20 | AC25: ES23 | AH25: 05 | AM25: 10 | AN25: 02 | AO25: 11 | AP25: 0 | AQ25: 63100 | AR25: 25240 | AS25: 37860 | AT25: 0.6
A26: 2021ES05SFPR018 | B26: FSE+ C.A. La Rioja | C26: 5 | D26: ESO4.1 | E26: ESF | F26: T | H26: Orientación profesional personas SNGJ | I26: NO | J26: N/A | L26: GD-MP | M26: 3 | N26: 2024/03/SRE_ORIENTACION | O26: Orientación profesional personas SNGJ 2024 | P26: Dirección General de Empleo | R26: Orientación profesional personas SNGJ 2024 | S26: 618 | T26: 45292 | U26: 45322 | V26: 63100 | W26: 0 | X26: ES | Y26: 136 | Z26: 01 | AA26: 33 | AB26: 20 | AC26: ES23 | AD26: 01 | AE26: 02 | AG26: 04 | AM26: 10 | AN26: 02 | AO26: 11 | AP26: 0 | AQ26: 63100 | AR26: 25240 | AS26: 37860 | AT26: 0.6
A27: 2021ES05SFPR018 | B27: FSE+ C.A. La Rioja | C27: 5 | D27: ESO4.1 | E27: ESF | F27: T | H27: Programa de becas de formación sobre internacionalización para formar a la población joven convirtiéndolos en profesionales especializados en internacionalización empresarial que puedan integrarse con facilidad en los departamentos de comercio exterior de las empresas | I27: NO | J27: N/A | L27: CS | M27: 4 | N27: 2024/01/ADER_INTERNACIONALIZACIÓN (2023-2024) | O27: Becas de formación en prácticas sobre INTERNACIONALIZACIÓN (2023-2024). | P27: ADER | R27: Becas de formación en prácticas sobre INTERNACIONALIZACIÓN (2023-2024). | S27: 618 | T27: 45170 | U27: 45657 | V27: 330000 | W27: 0 | X27: ES | Y27: 136 | Z27: 01 | AA27: 33 | AB27: 20 | AC27: ES23 | AD27: 01 | AE27: 02 | AG27: 04 | AM27: 10 | AN27: 02 | AO27: 11 | AP27: 0 | AQ27: 330000 | AR27: 132000 | AS27: 198000 | AT27: 0.6
A28: 2021ES05SFPR018 | B28: FSE+ C.A. La Rioja | C28: 5 | D28: ESO4.1 | E28: ESF | F28: T | H28: Escuelas Taller | I28: SI | J28: N/A | L28: CS | M28: 3 | N28: 2025/01/SRE_ESCUELAS TALLER | O28: Programa mixto empleo y formación para la mejora del acceso al empleoy adquisición de experiencia a beneficiariosdel Sistema Nacional de Garantía Juvenil. | P28: Dirección General de Empleo | R28: realización de proyectos de alternancia entre la formación y el trabajo productivo en actividades de utilidad pública o interés social. | S28: 105 | T28: 45383 | U28: 45748 | V28: 290139 | W28: 0 | X28: ES | Y28: 136 | Z28: 01 | AA28: 33 | AB28: 20 | AC28: ES23 | AD28: 01 | AE28: 02 | AG28: 04 | AM28: 10 | AN28: 02 | AO28: 11 | AP28: 0 | AQ28: 290139 | AR28: 116055.6 | AS28: 174083.4 | AT28: 0.6
A29: 2021ES05SFPR018 | B29: FSE+ C.A. La Rioja | C29: 5 | D29: ESO4.1 | E29: ESF | F29: T | H29: Contratación de personas jóvenes desempleadas inscritas en el SNGJ en colaboración con corporaciones locales y entidades sin ánimo de lucro. Convocatoria 2024 | I29: NO | J29: N/A | L29: CS | M29: 5A | N29: 2025/02/SRRE_CONTRATACIÓN JÓVENES SNGJ. Convocaatoria 2024 | O29: Contratación de personas jóvenes desempleadas inscritas en el SNGJ en colaboración con corporaciones locales y entidades sin ánimo de lucro. Convocatoria 2024 | P29: Dirección General de Empleo | R29: contratación de personas jóvenes desempleadas inscritas en el SNGJ en colaboración con corporaciones locales y Entidades sin áanimo de lucro para que obtengan una práctica profesional mediante la realización de tareas y funciones acordes a su perfil y vinculadas al desarrollo de proyectos de interés general y social, facilitándoles además, una experiencia laboral adecuada a su nivel de estudios. | T29: 45444 | U29: 45930 | V29: 1666890 | W29: 0 | X29: ES | Y29: 136 | Z29: 01 | AA29: 33 | AB29: 20 | AC29: ES23 | AD29: 01 | AE29: 02 | AG29: 04 | AM29: 10 | AN29: 02 | AO29: 11 | AP29: 0 | AQ29: 1666890 | AR29: 666756 | AS29: 1000134 | AT29: 0.6
A30: 2021ES05SFPR018 | B30: FSE+ C.A. La Rioja | C30: 5 | D30: ESO4.1 | E30: ESF | F30: T | H30: Contratación de personas jóvenes desempleadas inscritas en el SNGJ en colaboración con corporaciones locales y entidades sin ánimo de lucro. Convocatoria 2024 adicional | I30: NO | J30: N/A | L30: CS | M30: 5A | N30: 2025/03/SRE_CONTRATACIÓN JÓVENES SNGJ. Convocaatoria 2024 | O30: Contratación de personas jóvenes desempleadas inscritas en el SNGJ en colaboración con corporaciones locales y entidades sin ánimo de lucro. Convocatoria 2024 adicional | P30: Dirección General de Empleo | R30: contratación de personas jóvenes desempleadas inscritas en el SNGJ en colaboración con corporaciones locales y Entidades sin áanimo de lucro para que obtengan una práctica profesional mediante la realización de tareas y funciones acordes a su perfil y vinculadas al desarrollo de proyectos de interés general y social, facilitándoles además, una experiencia laboral adecuada a su nivel de estudios. | T30: 45627 | U30: 45930 | V30: 793950 | W30: 0 | X30: ES | Y30: 136 | Z30: 01 | AA30: 33 | AB30: 20 | AC30: ES23 | AD30: 01 | AE30: 02 | AG30: 04 | AM30: 10 | AN30: 02 | AO30: 11 | AP30: 0 | AQ30: 793950 | AR30: 317580 | AS30: 476370 | AT30: 0.6
A31: 2021ES05SFPR018 | B31: FSE+ C.A. La Rioja | C31: 1 | D31: ESO4.1 | E31: ESF | F31: T | H31: Orientación profesional personas desfavorecidas | I31: NO | J31: N/A | L31: GD-MP | M31: 3 | N31: 2025/01/SRE_ORIENTACION | O31: Orientación profesional personas desfavorecidas 2025 | P31: Dirección General de Empleo | R31: Orientación profesional personas desfavorecidas 2025 | S31: 120 | T31: 45658 | U31: 46022 | V31: 63100 | W31: 0 | X31: ES | Y31: 134 | Z31: 01 | AA31: 33 | AB31: 20 | AC31: ES23 | AH31: 05 | AM31: 10 | AN31: 02 | AO31: 11 | AP31: 0 | AQ31: =AR31+AS31 -> 63100 | AR31: =V31-(AS31+W31) -> 25240 | AS31: =V31*AT31 -> 37860 | AT31: =IF(A31="2021ES05SFPR009",85%,IF(A31="2021ES05SFPR004",90%,IF(C31="6",95%,IF(F31="M",40%,IF(F31="T",60%,IF(F31="L",85%,0)))))) -> 0.6
A32: 2021ES05SFPR018 | B32: FSE+ C.A. La Rioja | C32: 5 | D32: ESO4.1 | E32: ESF | F32: T | H32: Orientación profesional personas SNGJ | I32: NO | J32: N/A | L32: GD-MP | M32: 3 | N32: 2025/02/SRE_ORIENTACION | O32: Orientación profesional personas SNGJ 2025 | P32: Dirección General de Empleo | R32: Orientación profesional personas SNGJ 2025 | S32: 618 | T32: 45658 | U32: 46022 | V32: 63100 | W32: 0 | X32: ES | Y32: 136 | Z32: 01 | AA32: 33 | AB32: 20 | AC32: ES23 | AD32: 01 | AE32: 02 | AG32: 04 | AM32: 10 | AN32: 02 | AO32: 11 | AP32: 0 | AQ32: 63100 | AR32: 25240 | AS32: 37860 | AT32: 0.6
A33: 2021ES05SFPR018 | B33: FSE+ C.A. La Rioja | C33: 7 | D33: ESO4.11 | E33: ESF | F33: T | H33: Atencion Temprana | I33: NO | J33: N/A | L33: GC-CONC | M33: 12 | N33: 2025/01/SDyPD_ATENCIÓN TEMPRANA | O33: Servicio de Intervención de servicios sociales en Atención Temprana en centros o servicios de desarrollo infantil | P33: Servicio de Dependencia, Discapacidad y Mayores. Consejería de Salud y Políticas Sociales. | Q33: Varios adjudicatarios | R33: Reducir las consecuencias negativas de los trastornos en el desarrrollo del menor. | S33: 828 | T33: 45352 | U33: 47209 | V33: 4039875 | W33: 0 | X33: ES | Y33: 159 | Z33: 01 | AA33: 33 | AB33: 23 | AC33: ES23 | AH33: 05 | AM33: 10 | AN33: 02 | AO33: 11 | AP33: 0 | AQ33: 4039875 | AR33: 1615950 | AS33: 2423925 | AT33: 0.6
A34: 2021ES05SFPR018 | B34: FSE+ C.A. La Rioja | C34: 5 | D34: ESO4.1 | E34: ESF | F34: T | H34: Contratación de personas jóvenes desempleadas inscritas en el SNGJ en colaboración con corporaciones locales y entidades sin ánimo de lucro. Convocatoria 2025 | I34: NO | J34: N/A | L34: CS | M34: 5A | N34: 2025/03/SRE_CONTRATACIÓN JÓVENES SNGJ. Convocatoria 2025 | O34: Contratación de personas jóvenes desempleadas inscritas en el SNGJ en colaboración con corporaciones locales y entidades sin ánimo de lucro. Convocatoria 2025 | P34: Dirección General de Empleo | R34: contratación de personas jóvenes desempleadas inscritas en el SNGJ en colaboración con corporaciones locales y Entidades sin áanimo de lucro para que obtengan una práctica profesional mediante la realización de tareas y funciones acordes a su perfil y vinculadas al desarrollo de proyectos de interés general y social, facilitándoles además, una experiencia laboral adecuada a su nivel de estudios. | T34: 45809 | U34: 46295 | V34: 1711695.66 | W34: 0 | X34: ES | Y34: 136 | Z34: 01 | AA34: 33 | AB34: 20 | AC34: ES23 | AD34: 01 | AE34: 02 | AG34: 04 | AM34: 10 | AN34: 02 | AO34: 11 | AP34: 0 | AQ34: 1711695.66 | AR34: 684678.264 | AS34: 1027017.396 | AT34: 0.6
V35: =SUM(V8:V34) -> 22989019.66

Sheet TD CUADRO 1 (hidden)
A2: Programa | B2: (Varios elementos) | D2: 1. Si no aparecen datos, selecciona tu programa
A4: Prioridad | B4: Objetivo específico | C4: Fondo | D4: Categoría de región | E4: Porcentaje de cofinanciación | F4: Suma de Coste subvencionable de la operación aprobada | G4: Suma de Importe total del gasto subvencionable declarado por los beneficiarios | H4: Cuenta de Código operación

Sheet COPIA TDCUADRO1 ORDENAR CAT.REG (hidden)
A1: 1 | B1: 2 | C1: 3 | D1: 4 | E1: 5 | F1: 6 | G1: 7 | H1: 8 | I1: 9 | J1: 10 | K1: 11 | L1: 12 | M1: 13
A2: Asignación financiera de la prioridad en función del programa | H2: Datos acumulativos sobre la situación financiera del programa | O2: 1. Arrastra hasta mostrar tantas filas como TD Cuadro 1.
A4: Prioridad | B4: Objetivo específico | C4: Fondo | D4: Categoría de región | E4: Base para el cálculo de la contribución de la Unión | F4: Asignación financiera total por fondo y contribución nacional (EUR) | G4: Porcentaje de cofinanciación (%) | H4: Coste total subvencionable de las operaciones seleccionadas (EUR) | I4: Contribución de los fondos a las operaciones seleccionadas (EUR) | J4: Proporción de la asignación financiera total cubierta por las operaciones seleccionadas (%) | K4: Importe total del gasto subvencionable declarado por los beneficiarios | L4: Proporción de la asignación financiera total cubierta por el gasto subvencionable declarado por los beneficiarios (%) | M4: Número de operaciones seleccionadas
A5: ='TD CUADRO 1'!A5 -> 0 | B5: ='TD CUADRO 1'!B5 -> 0 | C5: ='TD CUADRO 1'!C5 -> 0 | D5: ='TD CUADRO 1'!D5 -> 0 | G5: ='TD CUADRO 1'!E5 -> 0 | H5: ='TD CUADRO 1'!F5 -> 0 | I5: =IFERROR(H5*G5,"") -> 0 | J5: =IFERROR(H5/F5,"") ->  | K5: ='TD CUADRO 1'!G5 -> 0 | L5: =IFERROR(K5/F5,"") ->  | M5: ='TD CUADRO 1'!H5 -> 0 | O5: Compara/copia las columnas en gris con/en Cuadro 1

Sheet CUADRO 1 (hidden)
A1: 1 | B1: 2 | C1: 3 | D1: 4 | E1: 5 | F1: 6 | G1: 7 | H1: 8 | I1: 9 | J1: 10 | K1: 11 | L1: 12 | M1: 13
A2: Asignación financiera de la prioridad en función del programa | H2: Datos acumulativos sobre la situación financiera del programa
A4: Prioridad | B4: Objetivo específico | C4: Fondo | D4: Categoría de región | E4: Base para el cálculo de la contribución de la Unión | F4: Asignación financiera total por fondo y contribución nacional (EUR) | G4: Porcentaje de cofinanciación (%) | H4: Coste total subvencionable de las operaciones seleccionadas (EUR) | I4: Contribución de los fondos a las operaciones seleccionadas (EUR) | J4: Proporción de la asignación financiera total cubierta por las operaciones seleccionadas (%) | K4: Importe total del gasto subvencionable declarado por los beneficiarios | L4: Proporción de la asignación financiera total cubierta por el gasto subvencionable declarado por los beneficiarios (%) | M4: Número de operaciones seleccionadas
A5: 1 | B5: ESO4.1 | C5: FSE+ | D5: Transición | E5: Total | F5: 315702 | H5: 0 | I5: =IFERROR(H5*G5,"") -> 0 | J5: =IFERROR(H5/F5,"") -> 0 | L5: =IFERROR(K5/F5,"") -> 0
A6: 2 | B6: ESO4.8 | C6: FSE+ | D6: Transición | E6: Total | F6: 5432573.33 | I6: =IFERROR(H6*G6,"") -> 0 | J6: =IFERROR(H6/F6,"") -> 0 | L6: =IFERROR(K6/F6,"") -> 0
A7: 2 | B7: ESO4.11 | C7: FSE+ | D7: Transición | E7: Total | F7: 2501371.67 | I7: 0 | J7: 0 | L7: 0
A8: 5 | B8: ESO4.1 | C8: FSE+ | D8: Transición | E8: Total | F8: 13467914 | I8: 0 | J8: 0 | L8: 0
A9: 7 | B9: ESO4.11 | C9: FSE+ | D9: Transición | E9: Total | F9: 7080423.86 | I9: 0 | J9: 0 | L9: 0
A10: 7 | B10: ESO4.12 | C10: FSE+ | D10: Transición | E10: Total | F10: 3149645.14 | I10: 0 | J10: 0 | L10: 0
A11: Total | C11: FSE+ | D11: Transición | F11: 31947630 | I11: 0 | J11: 0 | L11: 0
A12: Total general | F12: 31947630 | I12: 0 | J12: 0 | L12: 0

Sheet TD CUADRO 2 (hidden)
A2: Título Programa | B2: FSE+ C.A. La Rioja
A4: Prioridad | B4: Objetivo específico | C4: Fondo | D4: Categoría de región | E4: Campo de intervención | F4: Forma de ayuda | G4: D. Aplicación Territorial | H4: D. Actividad Económica | I4: D. Ubicación | J4: D. Igualdad de Género | K4: D. Macrorregional y de las cuencas marítimas | L4: D. Tema secundario del FSE+ 01 | M4: D. Tema secundario del FSE+ 02 | N4: D. Tema secundario del FSE+ 03 | O4: D. Tema secundario del FSE+ 04 | P4: D. Tema secundario del FSE+ 05 | Q4: D. Tema secundario del FSE+ 06 | R4: D. Tema secundario del FSE+ 07 | S4: D. Tema secundario del FSE+ 08 | T4: D. Tema secundario del FSE+ 09 | U4: D. Tema secundario del FSE+ 10 | V4: Suma de Coste subvencionable de la operación aprobada | W4: Suma de Importe total del gasto subvencionable declarado por los beneficiarios | X4: Cuenta de Código operación
A5: 1 | B5: ESO4.1 | C5: ESF | D5: T | E5: 134 | F5: 01 | G5: 33 | H5: 20 | I5: ES23 | J5: 02 | K5: 11 | V5: 126200 | W5: 0 | X5: 2
A6: 2 | B6: ESO4.8 | C6: ESF | D6: T | E6: 153 | F6: 01 | G6: 33 | H6: 23 | I6: ES23 | J6: 02 | K6: 11 | V6: 7807824 | W6: 0 | X6: 9
A7: 2 | B7: ESO4.11 | C7: ESF | D7: T | E7: 158 | F7: 01 | G7: 33 | H7: 23 | I7: ES23 | J7: 02 | K7: 11 | V7: 3350280 | W7: 0 | X7: 6
A8: 5 | B8: ESO4.1 | C8: ESF | D8: T | E8: 136 | F8: 01 | G8: 33 | H8: 20 | I8: ES23 | J8: 02 | K8: 11 | V8: 6450840.66 | W8: 0 | X8: 8
A9: 7 | B9: ESO4.11 | C9: ESF | D9: T | E9: 159 | F9: 01 | G9: 33 | H9: 23 | I9: ES23 | J9: 02 | K9: 11 | V9: 5253875 | W9: 0 | X9: 2

Sheet Copia TDCuadro 2 para carga SFC (hidden)
A4: Priority | B4: Specific objective | C4: Fund | D4: Category of region | E4: Intervention field | F4: Form of support | G4: Territorial delivery dimension | H4: Economic activity dimension | I4: Location dimension | J4: ESF+ secondary theme | K4: ESF+ secondary theme 02 | L4: ESF+ secondary theme 03 | M4: ESF+ secondary theme 04 | N4: ESF+ secondary theme 05 | O4: ESF+ secondary theme 06 | P4: ESF+ secondary theme 07 | Q4: ESF+ secondary theme 08 | R4: ESF+ secondary theme 09 | S4: ESF+ secondary theme 10 | T4: Gender equality dimension | U4: Macro-regional and sea-basin dimension | V4: Total eligible cost of selected operations (EUR) | W4: Total eligible expenditure declared by beneficiaries | X4: Number of selected operations
A5: ='TD CUADRO 2'!A5 -> 1 | B5: ='TD CUADRO 2'!B5 -> ESO4.1 | C5: ='TD CUADRO 2'!C5 -> ESF | D5: ='TD CUADRO 2'!D5 -> T | E5: ='TD CUADRO 2'!E5 -> 134 | F5: ='TD CUADRO 2'!F5 -> 01 | G5: ='TD CUADRO 2'!G5 -> 33 | H5: ='TD CUADRO 2'!H5 -> 20 | I5: ='TD CUADRO 2'!I5 -> ES23 | J5: ='TD CUADRO 2'!L5 -> 0 | K5: ='TD CUADRO 2'!M5 -> 0 | L5: ='TD CUADRO 2'!N5 -> 0 | M5: ='TD CUADRO 2'!O5 -> 0 | N5: ='TD CUADRO 2'!P5 -> 0 | O5: ='TD CUADRO 2'!Q5 -> 0 | P5: ='TD CUADRO 2'!R5 -> 0 | Q5: ='TD CUADRO 2'!S5 -> 0 | R5: ='TD CUADRO 2'!T5 -> 0 | S5: ='TD CUADRO 2'!U5 -> 0 | T5: ='TD CUADRO 2'!J5 -> 02 | U5: ='TD CUADRO 2'!K5 -> 11 | V5: ='TD CUADRO 2'!V5 -> 126200 | W5: ='TD CUADRO 2'!W5 -> 0 | X5: ='TD CUADRO 2'!X5 -> 2

Sheet FICHERO CARGA CUADRO2 SFC (hidden)
A1: Priority | B1: Specific objective | C1: Fund | D1: Category of region | E1: Intervention field | F1: Form of support | G1: Territorial delivery dimension | H1: Economic activity dimension | I1: Location dimension | J1: ESF+ secondary theme | K1: ESF+ secondary theme 02 | L1: ESF+ secondary theme 03 | M1: ESF+ secondary theme 04 | N1: ESF+ secondary theme 05 | O1: ESF+ secondary theme 06 | P1: ESF+ secondary theme 07 | Q1: ESF+ secondary theme 08 | R1: ESF+ secondary theme 09 | S1: ESF+ secondary theme 10 | T1: Gender equality dimension | U1: Macro-regional and sea-basin dimension | V1: Total eligible cost of selected operations (EUR) | W1: Total eligible expenditure declared by beneficiaries | X1: Number of selected operations
Y2: Pega los datos de Copia TDCuadro2 para carga SFC aquí. ¡¡¡Pegalos como valor¡¡¡

Sheet CUADRO 2 (hidden)
A1: Características del gasto | E1: Dimensión de categorización | V1: Datos financieros
A2: Prioridad | B2: Objetivo específico | C2: Fondo | D2: Categoría de región | E2: 1 | F2: 2 | G2: 3 | H2: 4 | I2: 5 | J2: 6 | T2: 7 | U2: 8 | V2: Coste total subvencionable de las operaciones seleccionadas (EUR) | W2: Importe total del gasto subvencionable declarado por los beneficiarios | X2: Número de operaciones seleccionadas
E3: Campo de intervención | F3: Forma de ayuda | G3: Dimensión de la aplicación territorial | H3: Dimensión de la actividad económica | I3: Dimensión de ubicación | J3: Tema secundario del FSE+ 01 | K3: Tema secundario del FSE+ 02 | L3: Tema secundario del FSE+ 03 | M3: Tema secundario del FSE+ 04 | N3: Tema secundario del FSE+ 05 | O3: Tema secundario del FSE+ 06 | P3: Tema secundario del FSE+ 07 | Q3: Tema secundario del FSE+ 08 | R3: Tema secundario del FSE+ 09 | S3: Tema secundario del FSE+ 10 | T3: Dimensión de igualdad de género | U3: Dimensión macrorregional y de las cuencas marítimas

Sheet Copia TDCuadro 2 con TSec (hidden)
A4: Priority | B4: Specific objective | C4: Fund | D4: Category of region | E4: Intervention field | F4: Form of support | G4: Territorial delivery dimension | H4: Economic activity dimension | I4: Location dimension | J4: ESF+ secondary theme | K4: ESF+ secondary theme 02 | L4: ESF+ secondary theme 03 | M4: ESF+ secondary theme 04 | N4: ESF+ secondary theme 05 | O4: ESF+ secondary theme 06 | P4: ESF+ secondary theme 07 | Q4: ESF+ secondary theme 08 | R4: ESF+ secondary theme 09 | S4: ESF+ secondary theme 10 | T4: Gender equality dimension | U4: Macro-regional and sea-basin dimension | V4: Total eligible cost of selected operations (EUR) | W4: Total eligible expenditure declared by beneficiaries | X4: Number of selected operations

Sheet LISTAS PERSONALIZADAS (hidden)
A2: OBJETIVOS ESPECÍFICOS | B2: ESO4.1;ESO4.2;ESO4.3;ESO4.4;ESO4.5;ESO4.6;ESO4.7;ESO4.8;ESO4.9;ESO4.10;ESO4.11;ESO4.12;ESO4.13
A3: REGIONES | B3: M;T;L;O

Sheet Programas (hidden)
A1: CCI | B1: TÍTULO PROGRAMA
A2: 2021ES05SFPR001 | B2: FSE+ Empleo Juvenil
A3: 2021ES05SFPR002 | B3: FSE+ de Educación y Formación, Empleo y Economía Social
A4: 2021ES05SFPR003 | B4: FSE+ de Inclusión Social, Garantía Infantil y Lucha Contra la Pobreza
A5: 2021ES05SFPR004 | B5: FSE+ de Asistencia Material Básica
A6: 2021ES05SFPR005 | B6: FSE+ C.A. Andalucía
A7: 2021ES05SFPR006 | B7: FSE+ C.A. Aragón
A8: 2021ES05SFPR007 | B8: FSE+ Principado de Asturias
A9: 2021ES05SFPR008 | B9: FSE+ C.A. Illes Balears
A10: 2021ES05SFPR009 | B10: FSE+ C.A. Canarias
A11: 2021ES05SFPR010 | B11: FSE+ C.A. Cantabria
A12: 2021ES05SFPR011 | B12: FSE+ C.A. Cataluña
A13: 2021ES05SFPR012 | B13: FSE+ C.A. Castilla-La Mancha
A14: 2021ES05SFPR013 | B14: FSE+ C.A. Castilla y León
A15: 2021ES05SFPR014 | B15: FSE+ Ciudad A. de Ceuta
A16: 2021ES05SFPR015 | B16: FSE+ Comunitat Valenciana
A17: 2021ES05SFPR016 | B17: FSE+ C.A. Extremadura
A18: 2021ES05SFPR017 | B18: FSE+ C.A. Galicia
A19: 2021ES05SFPR018 | B19: FSE+ C.A. La Rioja
A20: 2021ES05SFPR019 | B20: FSE+ C. de Madrid
A21: 2021ES05SFPR020 | B21: FSE+ Ciudad A. de Melilla
A22: 2021ES05SFPR021 | B22: FSE+ Región de Murcia
A23: 2021ES05SFPR022 | B23: FSE+ C. Foral de Navarra

Sheet Fondos (hidden)
A1: CÓDIGO | B1: DESCRIPCIÓN
A2: ESF | B2: ESF+

Sheet Tasa cofinanciación (hidden)
D3: CODIGO | E3: Tasa de cofinanciación
D4: 0.85 | E4: Menos desarrolladas
D5: 0.6 | E5: Transición
D6: 0.4 | E6: Más desarrolladas
D7: 0.85 | E7: Regiones ultraperiféricas o regiones septentrionales escasamente pobladas
D8: 0.9 | E8: BASICO
D9: 0.95 | E9: Prioridad 6

Sheet Prioridades (hidden)
A1: CÓDIGO | B1: PRIORIDAD
A2: 1 | B2: Empleo, adaptabilidad, emprendimiento y economía social - FSE+
A3: 2 | B3: Inclusión social - FSE+
A4: 3 | B4: Educación y formación - FSE+
A5: 4 | B5: Lucha contra la privación material - FSE+
A6: 5 | B6: Empleo juvenil - FSE+
A7: 6 | B7: Acciones sociales innovadoras - FSE+
A8: 7 | B8: Garantía Infantil - FSE+
A9: 8 | B9: Empleo, inclusión social y educación RUP - FSE+ RUP 85%

Sheet Objeticos específicos (hidden)
A1: CÓDIGO | B1: OBJETIVO ESPECÍFICO
A2: ESO4.1 | B2: a) mejorar el acceso al empleo y las medidas de activación para el empleo de los demandantes de empleo, en particular de los jóvenes, especialmente mediante la aplicación de la Garantía Juvenil, los desempleados de larga duración y los grupos desfavorecidos, así como de las personas inactivas, así como mediante la promoción del empleo por cuenta propia y la economía social
A3: ESO4.2 | B3: b) modernizar las instituciones y los servicios del mercado de trabajo para evaluar y prever las necesidades de capacidades y garantizar una asistencia oportuna y personalizada y el apoyo a la adecuación entre la oferta y la demanda en el mercado de trabajo, las transiciones y la movilidad;
A4: ESO4.3 | B4: c) promover una participación equilibrada de género en el mercado de trabajo, unas condiciones de trabajo equitativas y una mejora del equilibrio entre la vida laboral y la familiar, en particular mediante el acceso a unos servicios asequibles de atención a la infancia y de atención a personas dependientes;
A5: ESO4.4 | B5: d) promover la adaptación de los trabajadores, las empresas y los emprendedores al cambio, el envejecimiento activo y saludable y un entorno de trabajo saludable y bien adaptado que aborde los riesgos para la salud;
A6: ESO4.5 | B6: e) mejorar la calidad, inclusividad, eficacia y pertinencia para el mercado laboral de los sistemas de educación y formación, también mediante la validación del aprendizaje no formal e informal, para apoyar la adquisición de competencias clave, incluidas las capacidades empresariales y digitales, y promoviendo la introducción de sistemas de formación dual y de formación de aprendices;
A7: ESO4.6 | B7: f) promover la igualdad de acceso a una educación y una formación de calidad e inclusivas y su culminación, en particular para los grupos desfavorecidos, desde la educación infantil y cuidados de la primera infancia, pasando por la educación y la formación generales y profesionales, hasta la educación superior, así como la educación y el aprendizaje de las personas adultas, facilitando también la movilidad para el aprendizaje para todos y la accesibilidad de las personas con discapacidad;
A8: ESO4.7 | B8: g) promover el aprendizaje permanente, en particular mediante oportunidades para todos de mejora y reciclaje flexibles de las capacidades teniendo en cuenta las capacidades empresariales y digitales, una mejor previsión de los cambios y nuevos requisitos de capacidades, habida cuenta de las necesidades del mercado de trabajo, facilitando las transiciones profesionales y promoviendo la movilidad profesional
A9: ESO4.8 | B9: h) fomentar la inclusión activa al objeto de promover la igualdad de oportunidades, la no discriminación y la participación activa, y mejorar la empleabilidad, en particular para los grupos desfavorecidos;
A10: ESO4.9 | B10: i) promover la integración socioeconómica de los nacionales de terceros países, incluidos los migrantes;
A11: ESO4.10 | B11: j) promover la integración socioeconómica de las comunidades marginadas, como la población romaní;
A12: ESO4.11 | B12: k) mejorar la igualdad y la oportunidad del acceso a unos servicios de calidad, sostenibles y asequibles, incluidos los servicios que promueven el acceso a la vivienda y a una atención centrada en las personas, incluida la asistencia sanitaria; modernizar los sistemas de protección social, también fomentando el acceso a la protección social, con especial atención a los menores y los grupos desfavorecidos; mejorar la accesibilidad, también para personas con discapacidad, la efectividad y la resiliencia de los sistemas de asistencia sanitaria y de los servicios de cuidados de larga duración;
A13: ESO4.12 | B13: l) promover la integración social de las personas en riesgo de pobreza o exclusión social, incluidas las personas más desfavorecidas y la población infantil;
A14: ESO4.13 | B14: m) hacer frente a la privación material mediante alimentos y/o prestación de asistencia material básica a las personas más desfavorecidas, en particular a los menores, y establecer medidas de acompañamiento que apoyen su inclusión social.

Sheet Categorías de región (hidden)
A1: CÓDIGO SFC | B1: CATEGORÍAS DE REGIÓN | C1: Código FSEPLUS | D1: CATEGORÍA DE REGIÓN
A2: L | B2: Less Developed | C2: MeD | D2: Menos desarrolladas
A3: T | B3: Transition | C3: EnT | D3: Transición
A4: M | B4: More Developed | C4: MaD | D4: Más desarrolladas
A5: O | B5: Outermost or Northern Sparsely Populated | C5: RUP | D5: Regiones ultraperiféricas o regiones septentrionales escasamente pobladas

Sheet Aplicación art 94 o 95 (hidden)
A1: CÓDIGO | B1: ARTÍCULO 94 o 95
A2: N/A | B2: No aplican art. 94 ni art. 95
A3: ART94-PRO | B3: Artículo 94. Programa. Apéndice 1.
A4: ART94-REG | B4: Artículo 94. Reglamento Delegado.
A5: ART95-PRO | B5: Artículo 95. Programa. Apéndice 1.
A6: ART95-REG | B6: Artículo 95. Reglamento Delegado.

Sheet Métodos de Gestión (hidden)
A1: CÓDIGO | B1: MÉTODO DE GESTIÓN
A2: GD-ED | B2: Gestión directa: Ejecución directa
A3: GD-CONV | B3: Gestión directa: Convenios
A4: GD-ENC | B4: Gestión directa: Encomienda de gestión
A5: GD-MP | B5: Gestión directa: Encargo a medios propios
A6: GC-CONC | B6: Gestión directa: Conciertos
A7: GI-CONT | B7: Gestión Indirecta: Contrato
A8: CS | B8: Convocatoria de subvenciones

Sheet Tipología de operación (hidden)
A1: CODIGO | B1: TIPOLOGÍA DE OPERACIÓN
A2: 1A | B2: Formación a lo largo de la vida laboral
A3: 1B | B3: Formación Profesional
A4: 1C | B4: Formación de Personal Investigador y Ayudas Predoctorales e impulso a la investigación
A5: 2 | B5: Itinerarios Integrados
A6: 3 | B6: Orientación académica y/o profesional
A7: 4 | B7: Becas y ayudas para la educación y la formación
A8: 5A | B8: Ayudas para el fomento de la contratación
A9: 5B | B9: Bonificaciones y reducciones de cuotas a la Seguridad Social
A10: 5C | B10: Ayudas para el fomento del empleo protegido
A11: 6 | B11: Apoyo a los emprendedores y a la creación de empresas
A12: 7A | B12: Ayudas a la movilidad geográfica y funcional de trabajadores
A13: 7B | B13: Ayudas para mejoras de sistemas en las empresas
A14: 8 | B14: Iniciativas locales de empleo, pactos territoriales y otras ayudas en el ámbito local
A15: 9 | B15: Acciones frente al abandono escolar
A16: 10 | B16: Innovación social
A17: 11 | B17: Ayudas a redes y asociaciones
A18: 12 | B18: Impulso y promoción de la conciliación de la vida laboral y familia, así como de la igualdad de oportunidades, de la igualdad de trato, de la no discriminación y del fomento de la autonomía personal
A19: 13A | B19: Actualizaciones curriculares y de los catálogos de cualificaciones
A20: 13B | B20: Mejora del funcionamiento y calidad del Sistema Educativo y de la Formación Profesional
A21: 14 | B21: Actuaciones de modernización y mejora de los servicios de empleo y mercado de trabajo
A22: 15 | B22: Provisiones de ayuda de alimentos y productos básicos, así como medidas sociolaborales de acompañamiento que se recogen en el Programa Básico
A23: 16 | B23: Acciones de carácter socio-sanitario
A24: 17 | B24: Intervenciones centradas en la lucha para erradicar la exclusión de vivienda
A25: 18 | B25: Medidas de intervención directa y de los servicios sociales
A26: Pendiente | B26: Requiere nueva tipología

Sheet CAMPO DE INTERVENCIÓN (hidden)
A1: CODIGO | B1: CAMPO DE INTERVENCIÓN
A2: 121 | B2: Infraestructuras para la educación y el cuidado de la primera infancia
A3: 122 | B3: Infraestructuras para la enseñanza primaria y secundaria
A4: 123 | B4: Infraestructuras para la enseñanza superior
A5: 124 | B5: Infraestructuras para la educación y la formación profesional y el aprendizaje de adultos
A6: 125 | B6: Infraestructuras de vivienda para migrantes, refugiados y personas bajo protección internacional o que soliciten protección internacional
A7: 126 | B7: Infraestructuras de vivienda (para personas distintas de los migrantes, refugiados y personas bajo protección internacional o que soliciten protección internacional)
A8: 127 | B8: Otras infraestructuras sociales que contribuyen a la inclusión social en la comunidad
A9: 128 | B9: Infraestructuras sanitarias
A10: 129 | B10: Equipos sanitarios
A11: 130 | B11: Bienes muebles para servicios sanitarios
A12: 131 | B12: Digitalización en el sector sanitario
A13: 132 | B13: Equipos y suministros críticos necesarios para hacer frente a una situación de emergencia
A14: 133 | B14: Infraestructuras de acogida temporal para migrantes, refugiados y personas bajo protección internacional o que soliciten protección internacional
A15: 134 | B15: Medidas para mejorar el acceso al empleo
A16: 135 | B16: Medidas para fomentar el acceso al empleo de los desempleados de larga duración
A17: 136 | B17: Ayuda específica para el empleo juvenil y la integración socioeconómica de los jóvenes
A18: 137 | B18: Apoyo al trabajo por cuenta propia y a la creación de empresas
A19: 138 | B19: Apoyo para la economía social y las empresas sociales
A20: 139 | B20: Medidas para modernizar y reforzar las instituciones y servicios del mercado laboral para evaluar y anticipar las necesidades en materia de capacidades y garantizar una asistencia personalizada y oportuna
A21: 140 | B21: Apoyo a la adecuación entre la demanda y la oferta de empleo y las transiciones en el mercado laboral
A22: 141 | B22: Apoyo a la movilidad laboral
A23: 142 | B23: Medidas para promover la participación de las mujeres y reducir la segregación de género en el mercado laboral
A24: 143 | B24: Medidas de fomento del equilibrio entre vida privada y vida laboral, incluido el acceso a los servicios de guardería y de atención a las personas dependientes
A25: 144 | B25: Medidas para un entorno de trabajo sano y bien adaptado para hacer frente a los riesgos para la salud, incluida la promoción de la actividad física
A26: 145 | B26: Apoyo al desarrollo de las capacidades digitales
A27: 146 | B27: Apoyo a la adaptación al cambio de trabajadores, empresas y emprendedores
A28: 147 | B28: Medidas para fomentar el envejecimiento activo y saludable
A29: 148 | B29: Apoyo a la educación y el cuidado de la primera infancia (excluidas las infraestructuras)
A30: 149 | B30: Apoyo a la enseñanza primaria y secundaria (excluidas las infraestructuras)
A31: 150 | B31: Apoyo a la enseñanza terciaria (excluidas las infraestructuras)
A32: 151 | B32: Apoyo a la educación de personas adultas (excluidas las infraestructuras)
A33: 152 | B33: Medidas para promover la igualdad de oportunidades y la participación activa en la sociedad
A34: 153 | B34: Vías de integración y reintegración en el mundo laboral de las personas desfavorecidas
A35: 154 | B35: Medidas destinadas a mejorar el acceso de colectivos marginados como los gitanos a la educación y el empleo, y a promover su inclusión social
A36: 155 | B36: Apoyo a la sociedad civil activa con las comunidades marginadas, como la gitana
A37: 156 | B37: Acciones específicas destinadas a aumentar la participación de nacionales de terceros países en el empleo
A38: 157 | B38: Medidas para la integración social de los nacionales de terceros países
A39: 158 | B39: Medidas para mejorar el acceso equitativo y oportuno a servicios de calidad, sostenibles y asequibles
A40: 159 | B40: Medidas para mejorar la prestación de servicios locales y familiares
A41: 160 | B41: Medidas para mejorar la accesibilidad, la eficacia y la resiliencia de los sistemas sanitarios (excluidas las infraestructuras)
A42: 161 | B42: Medidas destinadas a mejorar el acceso a los cuidados de larga duración (excluidas las infraestructuras)
A43: 162 | B43: Medidas para modernizar los sistemas de protección social, incluido el fomento del acceso a la protección social
A44: 163 | B44: Promoción de la integración social de personas en riesgo de pobreza o exclusión social, en particular las más desfavorecidas y los niños
A45: 164 | B45: Subsanar las carencias materiales de los más desfavorecidos mediante la provisión de alimentos o asistencia material, incluidas medidas de acompañamiento.
A46: 170 | B46: Mejora de la capacidad de las autoridades responsables de los programas y de los organismos vinculados a la ejecución de los Fondos
A47: 171 | B47: Mejora de la cooperación con socios tanto internos como externos al Estado miembro
A48: 172 | B48: Financiación cruzada en el marco del FEDER (apoyo a acciones asimilables a las del FSE+ necesarias para la ejecución satisfactoria de la parte del FEDER de la operación y relacionadas directamente con ella).
A49: 173 | B49: Mejora de la capacidad institucional de las autoridades públicas y las partes interesadas para implementar los proyectos e iniciativas de cooperación territorial en un contexto transfronterizo, transnacional, marítimo e interregional
A50: 174 | B50: Interreg: gestión del cruce fronterizo y gestión de la movilidad y la migración
A51: 175 | B51: Regiones ultraperiféricas: compensación de los costes adicionales derivados del déficit de accesibilidad y la fragmentación territorial
A52: 176 | B52: Regiones ultraperiféricas: acción específica de compensación de los costes adicionales derivados de factores relativos al tamaño del mercado
A53: 177 | B53: Regiones ultraperiféricas: ayudas para compensar los costes adicionales derivados de las condiciones climáticas y las dificultades del terreno
A54: 178 | B54: Regiones ultraperiféricas: aeropuertos
A55: 179 | B55: Información y comunicación
A56: 180 | B56: Preparación, ejecución, seguimiento y control
A57: 181 | B57: Evaluación y estudios, recogida de datos
A58: 182 | B58: Refuerzo de la capacidad de las autoridades de los Estados miembros, los beneficiarios y los socios pertinentes

Sheet Forma de ayuda (hidden)
A1: CODIGO | B1: FORMA DE AYUDA
A2: 01 | B2: Subvención
A3: 02 | B3: Ayuda mediante instrumentos financieros: capital o cuasicapital
A4: 03 | B4: Ayuda mediante instrumentos financieros: préstamo
A5: 04 | B5: Ayuda mediante instrumentos financieros: garantía
A6: 05 | B6: Apoyo mediante instrumentos financieros: Subvenciones en una operación de instrumentos financieros
A7: 06 | B7: Premio

Sheet D. Intervención territorial (hidden)
A1: CODIGO | B1: D. Aplicación territorial | C1: DESCRIPCION
A2: 01 | B2: 01-Inversión territorial integrada | C2: Barrios urbanos
A3: 02 | B3: 01-Inversión territorial integrada | C3: Ciudades, municipios y extrarradio
A4: 03 | B4: 01-Inversión territorial integrada | C4: Zonas urbanas funcionales
A5: 04 | B5: 01-Inversión territorial integrada | C5: Zonas rurales
A6: 05 | B6: 01-Inversión territorial integrada | C6: Zonas montañosas
A7: 06 | B7: 01-Inversión territorial integrada | C7: Islas y zonas costeras
A8: 07 | B8: 01-Inversión territorial integrada | C8: Zonas con escasa densidad de población
A9: 08 | B9: 01-Inversión territorial integrada | C9: Otros tipos de territorios destinatarios
A10: 09 | B10: 02-Desarrollo local participativo | C10: Barrios urbanos
A11: 10 | B11: 02-Desarrollo local participativo | C11: Ciudades, municipios y extrarradio
A12: 11 | B12: 02-Desarrollo local participativo | C12: Zonas urbanas funcionales
A13: 12 | B13: 02-Desarrollo local participativo | C13: Zonas rurales
A14: 13 | B14: 02-Desarrollo local participativo | C14: Zonas montañosas
A15: 14 | B15: 02-Desarrollo local participativo | C15: Islas y zonas costeras
A16: 15 | B16: 02-Desarrollo local participativo | C16: Zonas con escasa densidad de población
A17: 16 | B17: 02-Desarrollo local participativo | C17: Otros tipos de territorios destinatarios
A18: 17 | B18: 03-Otro tipo de instrumento territorial | C18: Barrios urbanos
A19: 18 | B19: 03-Otro tipo de instrumento territorial | C19: Ciudades, municipios y extrarradio
A20: 19 | B20: 03-Otro tipo de instrumento territorial | C20: Zonas urbanas funcionales
A21: 20 | B21: 03-Otro tipo de instrumento territorial | C21: Zonas rurales
A22: 21 | B22: 03-Otro tipo de instrumento territorial | C22: Zonas montañosas
A23: 22 | B23: 03-Otro tipo de instrumento territorial | C23: Islas y zonas costeras
A24: 23 | B24: 03-Otro tipo de instrumento territorial | C24: Zonas con escasa densidad de población
A25: 24 | B25: 03-Otro tipo de instrumento territorial | C25: Otros tipos de territorios destinatarios
A26: 25 | B26: 04-Otros enfoques | C26: Barrios urbanos
A27: 26 | B27: 04-Otros enfoques | C27: Ciudades, municipios y extrarradio
A28: 27 | B28: 04-Otros enfoques | C28: Zonas urbanas funcionales
A29: 28 | B29: 04-Otros enfoques | C29: Zonas rurales
A30: 29 | B30: 04-Otros enfoques | C30: Zonas montañosas
A31: 30 | B31: 04-Otros enfoques | C31: Islas y zonas costeras
A32: 31 | B32: 04-Otros enfoques | C32: Zonas con escasa densidad de población
A33: 32 | B33: 04-Otros enfoques | C33: Otros tipos de territorios destinatarios
A34: 33 | B34: 04-Otros enfoques | C34: Sin enfoque territorial

Sheet D. Actividad económica (hidden)
A1: CODIGO | B1: D. ACTIVIDAD ECONÓMICA
A2: 01 | B2: Agricultura y silvicultura
A3: 02 | B3: Pesca
A4: 03 | B4: Acuicultura
A5: 04 | B5: Otros sectores de la economía azul
A6: 05 | B6: Elaboración de productos alimenticios y bebidas
A7: 06 | B7: Industria textil y de la confección
A8: 07 | B8: Fabricación de material de transporte
A9: 08 | B9: Fabricación de productos informáticos, electrónicos y ópticos
A10: 09 | B10: Otras industrias manufactureras no especificadas
A11: 10 | B11: Construcción
A12: 11 | B12: Industrias de extracción (incluida la extracción de productos energéticos)
A13: 12 | B13: Energía eléctrica, gas, vapor, agua caliente y aire acondicionado
A14: 13 | B14: Suministro de agua, actividades de saneamiento, gestión de residuos y descontaminación
A15: 14 | B15: Transporte y almacenamiento
A16: 15 | B16: Actividades de información y comunicaciones, incluidas las telecomunicaciones, los servicios de información, la programación de ordenadores, la consultoría y otras actividades relacionadas
A17: 16 | B17: Comercio al por mayor y al por menor
A18: 17 | B18: Turismo y hostelería
A19: 18 | B19: Actividades financieras y de seguros
A20: 19 | B20: Actividades inmobiliarias y de alquiler; servicios prestados a las empresas
A21: 20 | B21: Administración pública
A22: 21 | B22: Enseñanza
A23: 22 | B23: Actividades sanitarias
A24: 23 | B24: Asistencia social, servicios prestados a la comunidad y servicios sociales y personales
A25: 24 | B25: Actividades relacionadas con el medio ambiente y el cambio climático
A26: 25 | B26: Artes, espectáculos, industrias creativas y ocio
A27: 26 | B27: Otros servicios no especificados

Sheet D. Ubicación (hidden)
A1: CÓDIGO | B1: D. UBICACIÓN
A2: ES11 | B2: Galicia
A3: ES12 | B3: Principado de Asturias
A4: ES13 | B4: Cantabria
A5: ES21 | B5: País Vasco
A6: ES22 | B6: Comunidad Foral de Navarra
A7: ES23 | B7: La Rioja
A8: ES24 | B8: Aragón
A9: ES30 | B9: Comunidad de Madrid
A10: ES41 | B10: Castilla y León
A11: ES42 | B11: Castilla La Mancha
A12: ES43 | B12: Extremadura
A13: ES51 | B13: Cataluña
A14: ES52 | B14: Comunitad Valenciana
A15: ES53 | B15: Illes Balears
A16: ES61 | B16: Andalucía
A17: ES62 | B17: Región de Murcia
A18: ES63 | B18: Ciudad Autónoma de Ceuta
A19: ES64 | B19: Ciudad Autónoma de Melilla
A20: ES70 | B20: Canarias
A21: ES | B21: Todas

Sheet D. Tema secundario del FSE+ (hidden)
A1: CODIGO | B1: D. Tema secundario del FSE+ | D1: CODIGO T.SEC 01 | E1: CODIGO T.SEC 02 | F1: CODIGO T.SEC 03 | G1: CODIGO T.SEC 04 | H1: CODIGO T.SEC 05 | I1: CODIGO T.SEC 06 | J1: CODIGO T.SEC 07 | K1: CODIGO T.SEC 08 | L1: CODIGO T.SEC 09 | M1: CODIGO T.SEC 10
A2: 01 | B2: Contribución a las competencias y empleos verdes y a la economía ecológica
A3: 02 | B3: Desarrollo de capacidades y empleos digitales | D3: 01 | E3: 02 | F3: 03 | G3: 04 | H3: 05 | I3: 06 | J3: 07 | K3: 08 | L3: 09 | M3: 10
A4: 03 | B4: Inversión en investigación e innovación y especialización inteligente
A5: 04 | B5: Inversión en pequeñas y medianas empresas (pymes)
A6: 05 | B6: No discriminación
A7: 06 | B7: Hacer frente a la pobreza infantil
A8: 07 | B8: Capacitación de los interlocutores sociales
A9: 08 | B9: Capacitación de las organizaciones de la sociedad civil
A10: 09 | B10: No procede
A11: 10 | B11: Abordar los retos señalados en Semestre Europeo

Sheet D. Igualdad de género (hidden)
A1: CODIGO | B1: D. IGUALDAD DE GÉNERO
A2: 01 | B2: Proyectos centrados en las cuestiones de género
A3: 02 | B3: Proyectos que integran la perspectiva de género
A4: 03 | B4: Neutralidad desde el punto de vista del género

Sheet Macrorregionales y Cuencas M (hidden)
A1: CODE | B1: D. MACRORREGIONAL Y DE LAS CUENCAS MARÍTIMAS
A2: 11 | B2: No contribución a las estrategias macrorregionales y de las cuencas marítimas.
A3: 10 | B3: Estrategia para la Región del Mediterráneo Occidental
A4: 09 | B4: Mar del Norte
A5: 08 | B5: Mar Mediterráneo
A6: 07 | B6: Mar Negro
A7: 06 | B7: Estrategia para la Región Atlántica
A8: 05 | B8: Océano Ártico
A9: 04 | B9: Estrategia para la Región del Danubio
A10: 03 | B10: Estrategia para la Región del Mar Báltico
A11: 02 | B11: Estrategia para la Región Alpina
A12: 01 | B12: Estrategia para la Región del Adriático y del Jónico
